fUST/lending_fUST_20260106
["ID","MTS","AMOUNT","RATE_DAILY","PERIOD"]
[400534819,1767702195158,-1758.81,0.0003315,120]
[400534820,1767702195208,-200.52,0.00033151,30]
[400534821,1767702195258,-2000.0,0.00033151,120]
[400534822,1767702195309,-2000.0,0.00033151,120]
[400534823,1767702195363,-1758.81,0.00033178,120]
[400534824,1767702195420,-492.22675487,0.000332,117]
[400534825,1767702195472,-492.22675486,0.000332,117]
[400534826,1767702195526,-492.22675486,0.000332,117]
[400534827,1767702195579,-492.22675486,0.000332,117]
[400534828,1767702195635,-1758.81,0.00033205,120]
[400534829,1767702195686,-6590.1536,0.0003322,30]
[400534830,1767702195736,-1758.81,0.00033232,120]
[400534831,1767702195787,-1758.81,0.0003326,120]
[400534832,1767702195839,-1758.81,0.00033287,120]
[400534833,1767702195896,-1758.81,0.00033315,120]
[400534834,1767702195952,-1758.81,0.00033342,120]
[400534835,1767702196007,-1758.81,0.00033369,120]
[400534836,1767702196063,-1758.81,0.00033397,120]
[400534837,1767702196121,-1758.81,0.00033424,120]
[400534838,1767702196179,-2000.0,0.00033425,120]
[400534839,1767702196239,-2000.0,0.00033425,120]
[400534840,1767702196304,-2000.0,0.00033425,120]
[400534841,1767702196369,-2000.0,0.00033425,120]
[400534842,1767702196430,-2000.0,0.00033425,120]
[400534843,1767702196490,-1758.81,0.00033452,120]
[400534844,1767702196554,-1758.81,0.00033479,120]
[400534845,1767702196612,-418.3887,0.000335,60]
[400534846,1767702196672,-1758.91256973,0.00033506,120]
[400534847,1767702196735,-718.7296839,0.00033675,120]
[400534848,1767702196811,-935.68,0.00033698,35]
[400534849,1767702196870,-2000.0,0.00033699,120]
[400534850,1767702196930,-2000.0,0.00033699,120]
[400534851,1767702196992,-228.83240034,0.000339,120]
[400534852,1767702197055,-342.15229797,0.000339,120]
[400534853,1767702197114,-203.06425058,0.000339,120]
[400534854,1767702197180,-172.33135591,0.000339,120]
[400534855,1767702197240,-163.4725449,0.000339,120]
[400534856,1767702197301,-247.95804547,0.000339,120]
[400534857,1767702197361,-2000.0,0.00033973,120]
[400534858,1767702197419,-2000.0,0.00033973,120]
[400534859,1767702197476,-2000.0,0.00033973,120]
[400534860,1767702197532,-2000.0,0.00033973,120]
[400534861,1767702197590,-2000.0,0.00033973,120]
[400534862,1767702197648,-200.0,0.00034,120]
[400534863,1767702197706,-500.0,0.00034,120]
[400534864,1767702197764,-1000.0,0.00034,120]
[400534865,1767702197821,-152.91,0.00034118,60]
[400534866,1767702197880,-1806.58,0.00034154,60]
[400534867,1767702197941,-152.92444607,0.00034218,60]
[400534868,1767702197998,-151.19,0.00034245,60]
[400534869,1767702198055,-172.91,0.00034245,60]
[400534870,1767702198110,-935.68,0.00034246,36]
[400534871,1767702198168,-2921.37,0.00034246,120]
[400534872,1767702198222,-2000.0,0.00034247,120]
[400534873,1767702198277,-2000.0,0.00034247,120]
[400534874,1767702198342,-1806.58,0.00034254,60]
[400534875,1767702198402,-185.45,0.00034291,60]
[400534876,1767702198462,-151.19,0.00034345,60]
[400534877,1767702198517,-172.91,0.00034345,60]
[400534878,1767702198576,-1806.58,0.00034354,60]
[400534879,1767702198632,-185.45,0.00034391,60]
[400534880,1767702198689,-151.19,0.00034445,60]
[400534881,1767702198741,-172.93750778,0.00034445,60]
[400534882,1767702198795,-1806.58,0.00034454,60]
[400534883,1767702198849,-16221.28564571,0.00034458,36]
[400534884,1767702198906,-185.45,0.00034491,60]
[400534885,1767702198960,-2000.0,0.00034521,120]
[400534886,1767702199015,-2000.0,0.00034521,120]
[400534887,1767702199070,-2000.0,0.00034521,120]
[400534888,1767702199239,-2000.0,0.00034521,120]
[400534889,1767702199298,-2000.0,0.00034521,120]
[400534890,1767702199364,-151.19,0.00034545,60]
[400534891,1767702199435,-1806.58,0.00034554,60]
[400534892,1767702199497,-185.47632688,0.00034591,60]
[400534893,1767702199561,-151.19,0.00034645,60]
[400534894,1767702199622,-1806.58,0.00034654,60]
[400534895,1767702199682,-151.19,0.00034745,60]
[400534896,1767702199740,-1806.58,0.00034754,60]
[400534897,1767702199796,-935.68,0.00034794,37]
[400534898,1767702199852,-2000.0,0.00034795,120]
[400534899,1767702199910,-2000.0,0.00034795,120]
[400534900,1767702199965,-151.19,0.00034845,60]
[400534901,1767702200020,-1806.58,0.00034854,60]
[400534902,1767702200072,-2233.07438536,0.000349,120]
[400534903,1767702200123,-228.83240034,0.000349,120]
[400534904,1767702200173,-342.15229797,0.000349,120]
[400534905,1767702200224,-203.06425058,0.000349,120]
[400534906,1767702200275,-163.4725449,0.000349,120]
[400534907,1767702200326,-247.95804547,0.000349,120]
[400534908,1767702200380,-151.19,0.00034945,60]
[400534909,1767702200439,-1806.58,0.00034954,60]
[400534910,1767702200492,-200.0,0.00035,120]
[400534911,1767702200550,-200.0,0.00035,120]
[400534912,1767702200606,-150.0,0.00035,69]
[400534913,1767702200664,-200.0,0.00035,120]
[400534914,1767702200722,-500.0,0.00035,120]
[400534915,1767702200777,-206.5085114,0.00035,120]
[400534916,1767702200828,-151.76238319,0.00035,120]
[400534917,1767702200882,-10000.0,0.00035,30]
[400534918,1767702200934,-206.708255,0.00035,120]
[400534919,1767702200984,-2486.32832839,0.00035,120]
[400534920,1767702201034,-6028.96374568,0.00035,120]
[400534921,1767702201084,-224.444377,0.00035,120]
[400534922,1767702201129,-1090.52234252,0.00035,120]
[400534923,1767702201175,-214.277153,0.00035,120]
[400534924,1767702201220,-4181.0,0.00035,30]
[400534925,1767702201265,-30237.34978732,0.00035,30]
[400534926,1767702201315,-151.19,0.00035045,60]
[400534927,1767702201370,-1806.58,0.00035054,60]
[400534928,1767702201422,-2000.0,0.00035068,120]
[400534929,1767702201471,-2000.0,0.00035068,120]
[400534930,1767702201520,-2000.0,0.00035068,120]
[400534931,1767702201573,-2000.0,0.00035068,120]
[400534932,1767702201629,-2000.0,0.00035068,120]
[400534933,1767702201683,-151.19,0.00035145,60]
[400534934,1767702201735,-1806.58,0.00035154,60]
[400534935,1767702201786,-2695.786,0.000352,60]
[400534936,1767702201837,-2695.78,0.000352,60]
[400534937,1767702201887,-1238.952,0.000352,30]
[400534938,1767702201937,-1238.95,0.000352,30]
[400534939,1767702201993,-569.12,0.000352,60]
[400534940,1767702202045,-151.19,0.00035245,60]
[400534941,1767702202097,-1806.58,0.00035254,60]
[400534942,1767702202145,-2000.0,0.00035342,120]
[400534943,1767702202193,-2000.0,0.00035342,120]
[400534944,1767702202240,-935.68,0.00035342,38]
[400534945,1767702202288,-151.19,0.00035345,60]
[400534946,1767702202343,-1806.58,0.00035354,60]
[400534947,1767702202395,-9142.64624535,0.0003544,30]
[400534948,1767702202446,-151.19,0.00035445,60]
[400534949,1767702202503,-1806.58,0.00035454,60]
[400534950,1767702202556,-151.24709823,0.00035545,60]
[400534951,1767702202608,-1806.58,0.00035554,60]
[400534952,1767702202663,-2000.0,0.00035616,120]
[400534953,1767702202714,-2000.0,0.00035616,120]
[400534954,1767702202763,-2000.0,0.00035616,120]
[400534955,1767702202813,-2000.0,0.00035616,120]
[400534956,1767702202863,-2000.0,0.00035616,120]
[400534957,1767702202917,-2921.37,0.00035616,120]
[400534958,1767702202969,-151.0,0.00035616,31]
[400534959,1767702203018,-151.0,0.00035616,31]
[400534960,1767702203067,-151.0,0.00035616,31]
[400534961,1767702203114,-277.118359,0.00035616,31]
[400534962,1767702203170,-151.0,0.00035616,31]
[400534963,1767702203229,-151.0,0.00035616,31]
[400534964,1767702203294,-151.0,0.00035616,31]
[400534965,1767702203358,-151.0,0.00035616,31]
[400534966,1767702203422,-151.0,0.00035616,31]
[400534967,1767702203484,-151.0,0.00035616,31]
[400534968,1767702203559,-151.0,0.00035616,31]
[400534969,1767702203639,-151.0,0.00035616,31]
[400534970,1767702203700,-151.0,0.00035616,31]
[400534971,1767702203759,-151.0,0.00035616,31]
[400534972,1767702203819,-151.0,0.00035616,31]
[400534973,1767702203886,-151.0,0.00035616,31]
[400534974,1767702203951,-151.0,0.00035616,31]
[400534975,1767702204010,-151.0,0.00035616,31]
[400534976,1767702204069,-151.0,0.00035616,31]
[400534977,1767702204129,-151.0,0.00035616,31]
[400534978,1767702204191,-273.060074,0.00035616,31]
[400534979,1767702204261,-1806.58,0.00035654,60]
[400534980,1767702204324,-759.66998235,0.00035675,120]
[400534981,1767702204383,-376.8200359,0.00035733,30]
[400534982,1767702204603,-376.8200359,0.00035733,30]
[400534983,1767702204663,-376.8200359,0.00035733,30]
[400534984,1767702204716,-376.8200359,0.00035733,30]
[400534985,1767702204768,-376.8200359,0.00035733,30]
[400534986,1767702204819,-376.8200359,0.00035733,30]
[400534987,1767702204871,-376.8200359,0.00035733,30]
[400534988,1767702204924,-376.8200359,0.00035733,30]
[400534989,1767702204980,-376.8200359,0.00035733,30]
[400534990,1767702205036,-376.8200359,0.00035733,30]
[400534991,1767702205091,-376.8200359,0.00035733,30]
[400534992,1767702205141,-376.8200359,0.00035733,30]
[400534993,1767702205189,-376.8200359,0.00035733,30]
[400534994,1767702205234,-376.8200359,0.00035733,30]
[400534995,1767702205280,-376.8200359,0.00035733,30]
[400534996,1767702205327,-376.8200359,0.00035733,30]
[400534997,1767702205376,-376.8200359,0.00035733,30]
[400534998,1767702205427,-1806.58,0.00035754,60]
[400534999,1767702205480,-1806.58,0.00035854,60]
[400535000,1767702205534,-935.68,0.0003589,39]
[400535001,1767702205588,-2000.0,0.000359,120]
[400535002,1767702205639,-17114.13484825,0.00035925,38]
[400535003,1767702205692,-1806.58,0.00035954,60]
[400535004,1767702205741,-200.0,0.00036,120]
[400535005,1767702205791,-1000.0,0.00036,120]
[400535006,1767702205843,-500.0,0.00036,120]
[400535007,1767702205894,-2128.21846787,0.00036,30]
[400535008,1767702205945,-1806.58,0.00036054,60]
[400535009,1767702205994,-184.3704767,0.00036135,30]
[400535010,1767702206041,-198.5755019,0.00036135,30]
[400535011,1767702206089,-184.3704767,0.00036135,30]
[400535012,1767702206136,-184.3704767,0.00036135,30]
[400535013,1767702206183,-184.3704767,0.00036135,30]
[400535014,1767702206230,-184.3704767,0.00036135,30]
[400535015,1767702206277,-184.3704767,0.00036135,30]
[400535016,1767702206328,-184.3704767,0.00036135,30]
[400535017,1767702206376,-184.3704767,0.00036135,30]
[400535018,1767702206425,-184.3704767,0.00036135,30]
[400535019,1767702206477,-1806.58,0.00036154,60]
[400535020,1767702206528,-2000.0,0.00036164,120]
[400535021,1767702206583,-2000.0,0.00036164,120]
[400535022,1767702206641,-155.0,0.00036247,86]
[400535023,1767702206696,-1806.58,0.00036254,60]
[400535024,1767702206749,-1806.58,0.00036354,60]
[400535025,1767702206800,-935.68,0.00036438,40]
[400535026,1767702206856,-1806.58,0.00036454,60]
[400535027,1767702206911,-226.028078,0.000365,120]
[400535028,1767702206968,-1806.58,0.00036554,60]
[400535029,1767702207021,-168.3888056,0.00036593,30]
[400535030,1767702207072,-370.14949784,0.00036613,120]
[400535031,1767702207122,-1806.58,0.00036654,60]
[400535032,1767702207170,-1755.23,0.00036659,60]
[400535033,1767702207219,-501.0,0.0003666,30]
[400535034,1767702207268,-2000.0,0.00036712,120]
[400535035,1767702207316,-2000.0,0.00036712,120]
[400535036,1767702207368,-1806.58,0.00036754,60]
[400535037,1767702207419,-1755.23,0.00036759,60]
[400535038,1767702207468,-8071.42346807,0.00036789,60]
[400535039,1767702207520,-1806.58,0.00036854,60]
[400535040,1767702207573,-1755.23,0.00036859,60]
[400535041,1767702207624,-492.22675486,0.00036881,120]
[400535042,1767702207676,-2000.0,0.000369,120]
[400535043,1767702207723,-1806.58,0.00036954,60]
[400535044,1767702207771,-184.3704767,0.00036957,30]
[400535045,1767702207820,-190.8637568,0.00036957,30]
[400535046,1767702207873,-1755.23,0.00036959,60]
[400535047,1767702207924,-155.6642443,0.00036966,30]
[400535048,1767702207975,-600.6566519,0.00036966,30]
[400535049,1767702208027,-600.6566519,0.00036966,30]
[400535050,1767702208078,-600.6566519,0.00036966,30]
[400535051,1767702208128,-600.6566519,0.00036966,30]
[400535052,1767702208178,-600.6566519,0.00036966,30]
[400535053,1767702208231,-600.6566519,0.00036966,30]
[400535054,1767702208283,-600.6566519,0.00036966,30]
[400535055,1767702208337,-600.6566519,0.00036966,30]
[400535056,1767702208390,-988.0,0.00036981,30]
[400535057,1767702208451,-935.68,0.00036986,41]
[400535058,1767702208508,-2921.37,0.00036986,120]
[400535059,1767702208559,-1085.03793907,0.00036999,120]
[400535060,1767702208611,-200.0,0.00037,120]
[400535061,1767702208665,-1000.0,0.00037,120]
[400535062,1767702208719,-500.0,0.00037,120]
[400535063,1767702208770,-1806.58,0.00037054,60]
[400535064,1767702208819,-1755.23,0.00037059,60]
[400535065,1767702208870,-1806.58,0.00037154,60]
[400535066,1767702208918,-1755.23,0.00037159,60]
[400535067,1767702208965,-1806.58,0.00037254,60]
[400535068,1767702209012,-1755.23,0.00037259,60]
[400535069,1767702209060,-2000.0,0.0003726,120]
[400535070,1767702209107,-2000.0,0.0003726,120]
[400535071,1767702209152,-1806.83961106,0.00037354,60]
[400535072,1767702209200,-1755.23,0.00037359,60]
[400535073,1767702209246,-18006.98405079,0.00037391,40]
[400535074,1767702209295,-1755.23,0.00037459,60]
[400535075,1767702209346,-935.68,0.00037534,42]
[400535076,1767702209514,-1755.23,0.00037559,60]
[400535077,1767702209574,-1755.23,0.00037659,60]
[400535078,1767702209632,-800.6102808,0.00037675,120]
[400535079,1767702209687,-635.30521107,0.00037753,120]
[400535080,1767702209738,-1755.23,0.00037759,60]
[400535081,1767702209787,-2000.0,0.00037808,120]
[400535082,1767702209835,-2000.0,0.00037808,120]
[400535083,1767702209885,-1755.23,0.00037859,60]
[400535084,1767702209936,-2000.0,0.000379,120]
[400535085,1767702209985,-1755.23,0.00037959,60]
[400535086,1767702210032,-200.0,0.00038,120]
[400535087,1767702210081,-500.0,0.00038,120]
[400535088,1767702210125,-1005.93816261,0.00038,30]
[400535089,1767702210169,-1755.23,0.00038059,60]
[400535090,1767702210213,-935.68,0.00038082,43]
[400535091,1767702210259,-1755.23,0.00038159,60]
[400535092,1767702210307,-1755.23,0.00038259,60]
[400535093,1767702210357,-2000.0,0.00038356,120]
[400535094,1767702210413,-2000.0,0.00038356,120]
[400535095,1767702210471,-2921.37,0.00038356,120]
[400535096,1767702210526,-151.0,0.00038356,120]
[400535097,1767702210580,-151.0,0.00038356,120]
[400535098,1767702210632,-151.0,0.00038356,120]
[400535099,1767702210683,-151.0,0.00038356,120]
[400535100,1767702210731,-151.0,0.00038356,120]
[400535101,1767702210778,-151.0,0.00038356,120]
[400535102,1767702210825,-151.0,0.00038356,120]
[400535103,1767702210874,-151.0,0.00038356,120]
[400535104,1767702210922,-151.0,0.00038356,120]
[400535105,1767702210972,-151.0,0.00038356,120]
[400535106,1767702211025,-151.0,0.00038356,120]
[400535107,1767702211075,-192.351288,0.00038356,120]
[400535108,1767702211125,-1755.23,0.00038359,120]
[400535109,1767702211171,-1755.23,0.00038459,120]
[400535110,1767702211216,-1755.23,0.00038559,120]
[400535111,1767702211258,-935.68,0.0003863,44]
[400535112,1767702211304,-1755.23,0.00038659,120]
[400535113,1767702211350,-313.43112017,0.0003867,120]
[400535114,1767702211400,-1755.23,0.00038759,120]
[400535115,1767702211448,-18899.83325333,0.00038858,41]
[400535116,1767702211495,-1755.23,0.00038859,120]
[400535117,1767702211550,-1281.00586604,0.00038875,60]
[400535118,1767702211602,-2000.0,0.000389,120]
[400535119,1767702211659,-1755.65388203,0.00038959,120]
[400535120,1767702211716,-500.0,0.00039,120]
[400535121,1767702211772,-344.54850877,0.00039,120]
[400535122,1767702211830,-20739.04470395,0.00039,120]
[400535123,1767702211888,-935.68,0.00039178,45]
[400535124,1767702211947,-1017.15,0.00039428,120]
[400535125,1767702212005,-16200.0,0.000395,120]
[400535126,1767702212064,-1017.15,0.00039528,120]
[400535127,1767702212120,-1017.15,0.00039628,120]
[400535128,1767702212177,-841.55057925,0.00039675,120]
[400535129,1767702212229,-935.68,0.00039726,46]
[400535130,1767702212282,-2921.37,0.00039726,120]
[400535131,1767702212338,-1017.15,0.00039728,120]
[400535132,1767702212395,-1017.15,0.00039828,120]
[400535133,1767702212450,-2000.0,0.000399,120]
[400535134,1767702212505,-1017.15,0.00039928,120]
[400535135,1767702212563,-2036.60944281,0.0004,120]
[400535136,1767702212623,-1136.97096125,0.0004,30]
[400535137,1767702212680,-30000.0,0.0004,30]
[400535138,1767702212735,-200.0,0.0004,120]
[400535139,1767702212789,-200.0,0.0004,120]
[400535140,1767702212841,-50000.0,0.0004,120]
[400535141,1767702212895,-50519.92063357,0.0004,30]
[400535142,1767702212949,-65806.43055328,0.0004,30]
[400535143,1767702213002,-45509.78055721,0.0004,60]
[400535144,1767702213055,-500.0,0.0004,120]
[400535145,1767702213107,-275.0,0.0004,120]
[400535146,1767702213156,-784.25942038,0.0004,120]
[400535147,1767702213207,-60512.10110466,0.0004,120]
[400535148,1767702213256,-60493.38292914,0.0004,120]
[400535149,1767702213305,-310.93659266,0.0004,120]
[400535150,1767702213355,-20908.0,0.0004,60]
[400535151,1767702213405,-1003.1205916,0.0004,120]
[400535152,1767702213456,-32362.04141472,0.0004,120]
[400535153,1767702213511,-305.58661094,0.0004,120]
[400535154,1767702213567,-8749.87848358,0.0004,120]
[400535155,1767702213625,-167.02911919,0.0004,120]
[400535156,1767702213682,-50000.0,0.0004,120]
[400535157,1767702213737,-1041.66666667,0.0004,120]
[400535158,1767702213793,-1017.15,0.00040028,120]
[400535159,1767702213851,-1017.15,0.00040128,120]
[400535160,1767702213908,-1017.15,0.00040228,120]
[400535161,1767702213965,-935.68,0.00040273,47]
[400535162,1767702214020,-1017.15,0.00040328,120]
[400535163,1767702214073,-1017.15,0.00040428,120]
[400535164,1767702214122,-500.0,0.00040547,30]
[400535165,1767702214171,-500.0,0.00040547,30]
[400535166,1767702214218,-500.0,0.00040547,30]
[400535167,1767702214266,-500.0,0.00040547,30]
[400535168,1767702214315,-500.0,0.00040547,30]
[400535169,1767702214366,-500.0,0.00040547,30]
[400535170,1767702214418,-500.0,0.00040547,30]
[400535171,1767702214586,-500.0,0.00040547,30]
[400535172,1767702214646,-500.0,0.00040547,30]
[400535173,1767702214702,-500.0,0.00040547,30]
[400535174,1767702214756,-500.0,0.00040547,30]
[400535175,1767702214808,-500.0,0.00040547,30]
[400535176,1767702214859,-500.0,0.00040547,30]
[400535177,1767702214913,-501.68410476,0.00040547,30]
[400535178,1767702214972,-1017.15,0.00040628,120]
[400535179,1767702215030,-1017.15,0.00040728,120]
[400535180,1767702215084,-935.68,0.00040821,48]
[400535181,1767702215140,-1017.15,0.00040828,120]
[400535182,1767702215195,-2000.0,0.000409,120]
[400535183,1767702215249,-150.0,0.00041,120]
[400535184,1767702215303,-1000.0,0.00041,120]
[400535185,1767702215357,-539.23838113,0.00041,120]
[400535186,1767702215417,-1017.15,0.00041028,120]
[400535187,1767702215472,-155.8,0.00041041,120]
[400535188,1767702215524,-155.8,0.00041041,120]
[400535189,1767702215577,-155.8,0.00041041,120]
[400535190,1767702215628,-155.8,0.00041041,120]
[400535191,1767702215679,-2921.37,0.00041095,120]
[400535192,1767702215724,-1327.56,0.00041096,120]
[400535193,1767702215771,-799.19,0.00041096,120]
[400535194,1767702215820,-467.02047605,0.000411,120]
[400535195,1767702215870,-467.02047605,0.000411,120]
[400535196,1767702215920,-467.02047605,0.000411,120]
[400535197,1767702215969,-467.02047605,0.000411,120]
[400535198,1767702216019,-467.02047605,0.000411,120]
[400535199,1767702216066,-467.02047605,0.000411,120]
[400535200,1767702216112,-467.02047605,0.000411,120]
[400535201,1767702216158,-467.02047605,0.000411,120]
[400535202,1767702216203,-467.02047605,0.000411,120]
[400535203,1767702216247,-467.02047605,0.000411,120]
[400535204,1767702216296,-467.02047605,0.000411,120]
[400535205,1767702216347,-467.02047605,0.000411,120]
[400535206,1767702216400,-467.02047605,0.000411,120]
[400535207,1767702216454,-467.02047605,0.000411,120]
[400535208,1767702216508,-467.02047605,0.000411,120]
[400535209,1767702216565,-467.02047605,0.000411,120]
[400535210,1767702216627,-467.02047605,0.000411,120]
[400535211,1767702216686,-467.02047605,0.000411,120]
[400535212,1767702216744,-467.02047605,0.000411,120]
[400535213,1767702216804,-467.02,0.000411,120]
[400535214,1767702216864,-1089.71444411,0.000411,120]
[400535215,1767702216925,-1089.71444411,0.000411,120]
[400535216,1767702216984,-1089.71444411,0.000411,120]
[400535217,1767702217043,-1089.71444411,0.000411,120]
[400535218,1767702217101,-1089.71444411,0.000411,120]
[400535219,1767702217157,-1089.71444411,0.000411,120]
[400535220,1767702217211,-1089.71444411,0.000411,120]
[400535221,1767702217264,-1089.71444411,0.000411,120]
[400535222,1767702217323,-1089.71444411,0.000411,120]
[400535223,1767702217381,-1089.71444411,0.000411,120]
[400535224,1767702217441,-1089.71444411,0.000411,120]
[400535225,1767702217500,-1089.71444411,0.000411,120]
[400535226,1767702217566,-1089.71444411,0.000411,120]
[400535227,1767702217626,-1089.71444411,0.000411,120]
[400535228,1767702217683,-1089.71444411,0.000411,120]
[400535229,1767702217736,-1089.71444411,0.000411,120]
[400535230,1767702217792,-1089.71444411,0.000411,120]
[400535231,1767702217850,-1089.71444411,0.000411,120]
[400535232,1767702217911,-1089.71444411,0.000411,120]
[400535233,1767702217972,-1089.71,0.000411,120]
[400535234,1767702218030,-158.3954258,0.000411,120]
[400535235,1767702218089,-158.3954258,0.000411,120]
[400535236,1767702218148,-158.3954258,0.000411,120]
[400535237,1767702218207,-158.3954258,0.000411,120]
[400535238,1767702218267,-158.3954258,0.000411,120]
[400535239,1767702218328,-158.3954258,0.000411,120]
[400535240,1767702218389,-158.3954258,0.000411,120]
[400535241,1767702218449,-158.3954258,0.000411,120]
[400535242,1767702218512,-158.3954258,0.000411,120]
[400535243,1767702218570,-158.3954258,0.000411,120]
[400535244,1767702218629,-158.3954258,0.000411,120]
[400535245,1767702218687,-158.3954258,0.000411,120]
[400535246,1767702218743,-158.3954258,0.000411,120]
[400535247,1767702218797,-158.3954258,0.000411,120]
[400535248,1767702218852,-158.39,0.000411,120]
[400535249,1767702218908,-277.19199515,0.000411,120]
[400535250,1767702218964,-277.19199515,0.000411,120]
[400535251,1767702219021,-277.19199515,0.000411,120]
[400535252,1767702219077,-277.19199515,0.000411,120]
[400535253,1767702219130,-277.19199515,0.000411,120]
[400535254,1767702219180,-277.19199515,0.000411,120]
[400535255,1767702219231,-277.19199515,0.000411,120]
[400535256,1767702219280,-277.19199515,0.000411,120]
[400535257,1767702219336,-277.19199515,0.000411,120]
[400535258,1767702219393,-277.19199515,0.000411,120]
[400535259,1767702219451,-277.19199515,0.000411,120]
[400535260,1767702219509,-277.19199515,0.000411,120]
[400535261,1767702219567,-277.19199515,0.000411,120]
[400535262,1767702219627,-277.19199515,0.000411,120]
[400535263,1767702219683,-277.19199515,0.000411,120]
[400535264,1767702219736,-277.19199515,0.000411,120]
[400535265,1767702219791,-277.19199515,0.000411,120]
[400535266,1767702219963,-277.19199515,0.000411,120]
[400535267,1767702220020,-277.19199515,0.000411,120]
[400535268,1767702220079,-277.19,0.000411,120]
[400535269,1767702220137,-166.07071302,0.000411,120]
[400535270,1767702220194,-166.07071302,0.000411,120]
[400535271,1767702220254,-166.07071302,0.000411,120]
[400535272,1767702220314,-166.07071302,0.000411,120]
[400535273,1767702220375,-166.07071302,0.000411,120]
[400535274,1767702220436,-166.07071302,0.000411,120]
[400535275,1767702220496,-166.07071302,0.000411,120]
[400535276,1767702220561,-166.07,0.000411,120]
[400535277,1767702220623,-154.99933215,0.000411,120]
[400535278,1767702220684,-154.99933215,0.000411,120]
[400535279,1767702220744,-154.99933215,0.000411,120]
[400535280,1767702220800,-154.99933215,0.000411,120]
[400535281,1767702220856,-154.99933215,0.000411,120]
[400535282,1767702220913,-154.99933215,0.000411,120]
[400535283,1767702220967,-154.99933215,0.000411,120]
[400535284,1767702221021,-154.99933215,0.000411,120]
[400535285,1767702221075,-154.99933215,0.000411,120]
[400535286,1767702221127,-154.99933215,0.000411,120]
[400535287,1767702221179,-154.99933215,0.000411,120]
[400535288,1767702221229,-154.99933215,0.000411,120]
[400535289,1767702221283,-154.99933215,0.000411,120]
[400535290,1767702221338,-154.99933215,0.000411,120]
[400535291,1767702221393,-154.99933215,0.000411,120]
[400535292,1767702221448,-154.99933215,0.000411,120]
[400535293,1767702221503,-154.99933215,0.000411,120]
[400535294,1767702221562,-154.99933215,0.000411,120]
[400535295,1767702221620,-154.99933215,0.000411,120]
[400535296,1767702221679,-154.99,0.000411,120]
[400535297,1767702221736,-163.0,0.00041178,120]
[400535298,1767702221792,-1041.66666667,0.000412,120]
[400535299,1767702221848,-1017.15,0.00041228,120]
[400535300,1767702221905,-1017.15,0.00041328,120]
[400535301,1767702221959,-935.68,0.00041369,49]
[400535302,1767702222014,-200.0,0.000414,120]
[400535303,1767702222071,-1017.15,0.00041428,120]
[400535304,1767702222126,-150.0,0.000415,120]
[400535305,1767702222181,-1017.15,0.00041528,120]
[400535306,1767702222233,-303.38833708,0.00041602,60]
[400535307,1767702222289,-882.4908777,0.00041675,120]
[400535308,1767702222346,-1017.15,0.00041728,120]
[400535309,1767702222406,-20685.53165841,0.0004179,45]
[400535310,1767702222464,-1017.15,0.00041828,120]
[400535311,1767702222523,-2000.0,0.000419,120]
[400535312,1767702222581,-935.68,0.00041917,50]
[400535313,1767702222640,-1017.15,0.00041928,120]
[400535314,1767702222695,-200.0,0.00042,120]
[400535315,1767702222745,-400.0,0.00042,120]
[400535316,1767702222796,-250.98833006,0.00042,120]
[400535317,1767702222848,-2388.61,0.00042,30]
[400535318,1767702222902,-153.0,0.00042018,30]